Workbook

Sheet união (alimentar)
C1: nr da remessa | D1: 2 | E1: 10 | G1: 12 | H1: 14 | I1: 15
C2: 45717
C4: Superior Tribunal de Justiça
C5: Secretaria de Processamento de Feitos
C6: Coordenadoria de Processamento de Feitos em Execução Judicial
C7: ="Relação dos Precatórios Pagos em " & TEXT(IF(H12="","",H12),"mmmm/aaaa") -> Relação dos Precatórios Pagos em julho/2025
D8: Entidade devedora : | F8: =IF(G12="","",G12) -> União | H8: Natureza da despesa : | I8: =IF(F12="","",F12) -> Alimentar
C9: seq | D9: PRECATÓRIO | H9: VALORES ATUALIZADOS PARA PAGAMENTO
D10: PRC | E10: REGISTRO ÚNICO | F10: NATUREZA | G10: ENTIDADE DEVEDORA | H10: DATA | I10: TOTAL
C12: =IF(D12="","",1) -> 1 | D12: 11077 | E12: 0140487-60.2023.3.00.0000 | F12: Alimentar | G12: União | H12: 2025-07-01 | I12: 80054.68
C13: =IF(D13="","",C12+1) -> 2 | D13: 11083 | E13: 0171052-07.2023.3.00.0000 | F13: Alimentar | G13: União | H13: 2025-07-01 | I13: 23542.84
C14: =IF(D14="","",C13+1) -> 3 | D14: 11084 | E14: 0171071-13.2023.3.00.0000 | F14: Alimentar | G14: União | H14: 2025-07-01 | I14: 28518.9
C15: 4 | D15: 11085 | E15: 0172608-44.2023.3.00.0000 | F15: Alimentar | G15: União | H15: 2025-07-01 | I15: 178390.52
C16: 5 | D16: 11086 | E16: 0172680-31.2023.3.00.0000 | F16: Alimentar | G16: União | H16: 2025-07-01 | I16: 70465.91
C17: 6 | D17: 11087 | E17: 0172687-23.2023.3.00.0000 | F17: Alimentar | G17: União | H17: 2025-07-01 | I17: 47354.67
C18: 7 | D18: 11088 | E18: 0172695-97.2023.3.00.0000 | F18: Alimentar | G18: União | H18: 2025-07-01 | I18: 64135.89
C19: 8 | D19: 11089 | E19: 0172699-37.2023.3.00.0000 | F19: Alimentar | G19: União | H19: 2025-07-01 | I19: 53451.95
C20: 9 | D20: 11090 | E20: 0172786-90.2023.3.00.0000 | F20: Alimentar | G20: União | H20: 2025-07-01 | I20: 81241.41
C21: 10 | D21: 11091 | E21: 0172902-96.2023.3.00.0000 | F21: Alimentar | G21: União | H21: 2025-07-01 | I21: 54732.85
C22: 11 | D22: 11092 | E22: 0172913-28.2023.3.00.0000 | F22: Alimentar | G22: União | H22: 2025-07-01 | I22: 50752.32
C23: 12 | D23: 11093 | E23: 0172929-79.2023.3.00.0000 | F23: Alimentar | G23: União | H23: 2025-07-01 | I23: 84745.85
C24: 13 | D24: 11094 | E24: 0172942-78.2023.3.00.0000 | F24: Alimentar | G24: União | H24: 2025-07-01 | I24: 64334.8
C25: 14 | D25: 11095 | E25: 0172948-85.2023.3.00.0000 | F25: Alimentar | G25: União | H25: 2025-07-01 | I25: 15180.21
C26: 15 | D26: 11096 | E26: 0172952-25.2023.3.00.0000 | F26: Alimentar | G26: União | H26: 2025-07-01 | I26: 108587.7
C27: 16 | D27: 11097 | E27: 0173034-56.2023.3.00.0000 | F27: Alimentar | G27: União | H27: 2025-07-01 | I27: 103115.86
C28: 17 | D28: 11098 | E28: 0173064-91.2023.3.00.0000 | F28: Alimentar | G28: União | H28: 2025-07-01 | I28: 139149.46
C29: 18 | D29: 11099 | E29: 0173111-65.2023.3.00.0000 | F29: Alimentar | G29: União | H29: 2025-07-01 | I29: 92576.48
C30: 19 | D30: 11100 | E30: 0173114-20.2023.3.00.0000 | F30: Alimentar | G30: União | H30: 2025-07-01 | I30: 131162.14
C31: 20 | D31: 11101 | E31: 0173117-72.2023.3.00.0000 | F31: Alimentar | G31: União | H31: 2025-07-01 | I31: 99100.96
C32: 21 | D32: 11102 | E32: 0173121-12.2023.3.00.0000 | F32: Alimentar | G32: União | H32: 2025-07-01 | I32: 95849.97
C33: 22 | D33: 11106 | E33: 0173489-21.2023.3.00.0000 | F33: Alimentar | G33: União | H33: 2025-07-01 | I33: 97779.35
C34: 23 | D34: 11110 | E34: 0209808-85.2023.3.00.0000 | F34: Alimentar | G34: União | H34: 2025-07-01 | I34: 25510.74
C35: 24 | D35: 11111 | E35: 0210630-74.2023.3.00.0000 | F35: Alimentar | G35: União | H35: 2025-07-01 | I35: 114780.45
C36: 25 | D36: 11112 | E36: 0210636-81.2023.3.00.0000 | F36: Alimentar | G36: União | H36: 2025-07-01 | I36: 98409.12
C37: 26 | D37: 11113 | E37: 0210746-80.2023.3.00.0000 | F37: Alimentar | G37: União | H37: 2025-07-01 | I37: 92077.22
C38: 27 | D38: 11114 | E38: 0217707-37.2023.3.00.0000 | F38: Alimentar | G38: União | H38: 2025-07-01 | I38: 105180.27
C39: 28 | D39: 11115 | E39: 0217884-98.2023.3.00.0000 | F39: Alimentar | G39: União | H39: 2025-07-01 | I39: 111408.37
C40: 29 | D40: 11116 | E40: 0217885-83.2023.3.00.0000 | F40: Alimentar | G40: União | H40: 2025-07-01 | I40: 95574.83
C41: 30 | D41: 11117 | E41: 0217891-90.2023.3.00.0000 | F41: Alimentar | G41: União | H41: 2025-07-01 | I41: 114225.15
C42: 31 | D42: 11119 | E42: 0220467-56.2023.3.00.0000 | F42: Alimentar | G42: União | H42: 2025-07-01 | I42: 92310.98
C43: 32 | D43: 11120 | E43: 0220492-69.2023.3.00.0000 | F43: Alimentar | G43: União | H43: 2025-07-01 | I43: 8284.99
C44: 33 | D44: 11121 | E44: 0220493-54.2023.3.00.0000 | F44: Alimentar | G44: União | H44: 2025-07-01 | I44: 18548.21
C45: 34 | D45: 11122 | E45: 0220981-09.2023.3.00.0000 | F45: Alimentar | G45: União | H45: 2025-07-01 | I45: 11544.63
C46: 35 | D46: 11123 | E46: 0220986-31.2023.3.00.0000 | F46: Alimentar | G46: União | H46: 2025-07-01 | I46: 11544.63
C47: 36 | D47: 11124 | E47: 0225616-33.2023.3.00.0000 | F47: Alimentar | G47: União | H47: 2025-07-01 | I47: 16445.88
C48: 37 | D48: 11125 | E48: 0225617-18.2023.3.00.0000 | F48: Alimentar | G48: União | H48: 2025-07-01 | I48: 16445.88
C49: 38 | D49: 11126 | E49: 0225758-37.2023.3.00.0000 | F49: Alimentar | G49: União | H49: 2025-07-01 | I49: 257292.43
C50: 39 | D50: 11127 | E50: 0225836-31.2023.3.00.0000 | F50: Alimentar | G50: União | H50: 2025-07-01 | I50: 92887.27
C51: 40 | D51: 11128 | E51: 0226124-76.2023.3.00.0000 | F51: Alimentar | G51: União | H51: 2025-07-01 | I51: 93570.65
C52: 41 | D52: 11129 | E52: 0226129-98.2023.3.00.0000 | F52: Alimentar | G52: União | H52: 2025-07-01 | I52: 93246.55
C53: 42 | D53: 11130 | E53: 0226136-90.2023.3.00.0000 | F53: Alimentar | G53: União | H53: 2025-07-01 | I53: 98854.77
C54: 43 | D54: 11131 | E54: 0226140-30.2023.3.00.0000 | F54: Alimentar | G54: União | H54: 2025-07-01 | I54: 95546.69
C55: 44 | D55: 11132 | E55: 0227025-44.2023.3.00.0000 | F55: Alimentar | G55: União | H55: 2025-07-01 | I55: 101095.75
C56: 45 | D56: 11137 | E56: 0294431-82.2023.3.00.0000 | F56: Alimentar | G56: União | H56: 2025-07-01 | I56: 100940.81
C57: 46 | D57: 11138 | E57: 0294467-27.2023.3.00.0000 | F57: Alimentar | G57: União | H57: 2025-07-01 | I57: 104173.05
C58: 47 | D58: 11139 | E58: 0294548-73.2023.3.00.0000 | F58: Alimentar | G58: União | H58: 2025-07-01 | I58: 90031.46
C59: 48 | D59: 11140 | E59: 0294550-43.2023.3.00.0000 | F59: Alimentar | G59: União | H59: 2025-07-01 | I59: 109201.28
C60: 49 | D60: 11141 | E60: 0294556-50.2023.3.00.0000 | F60: Alimentar | G60: União | H60: 2025-07-01 | I60: 113398.64
C61: 50 | D61: 11152 | E61: 0294665-64.2023.3.00.0000 | F61: Alimentar | G61: União | H61: 2025-07-01 | I61: 97886.07
C62: 51 | D62: 11153 | E62: 0294667-34.2023.3.00.0000 | F62: Alimentar | G62: União | H62: 2025-07-01 | I62: 104176.59
C63: 52 | D63: 11154 | E63: 0299224-64.2023.3.00.0000 | F63: Alimentar | G63: União | H63: 2025-07-01 | I63: 139827
C64: 53 | D64: 11155 | E64: 0301325-74.2023.3.00.0000 | F64: Alimentar | G64: União | H64: 2025-07-01 | I64: 99675.96
C65: 54 | D65: 11156 | E65: 0303134-02.2023.3.00.0000 | F65: Alimentar | G65: União | H65: 2025-07-01 | I65: 91219.62
C66: 55 | D66: 11157 | E66: 0303140-09.2023.3.00.0000 | F66: Alimentar | G66: União | H66: 2025-07-01 | I66: 91740.57
C67: 56 | D67: 11158 | E67: 0303142-76.2023.3.00.0000 | F67: Alimentar | G67: União | H67: 2025-07-01 | I67: 95664.79
C68: 57 | D68: 11160 | E68: 0307382-11.2023.3.00.0000 | F68: Alimentar | G68: União | H68: 2025-07-01 | I68: 120465.99
C69: 58 | D69: 11169 | E69: 0316101-79.2023.3.00.0000 | F69: Alimentar | G69: União | H69: 2025-07-01 | I69: 662569.6
C70: 59 | D70: 11170 | E70: 0316112-11.2023.3.00.0000 | F70: Alimentar | G70: União | H70: 2025-07-01 | I70: 131138.35
C71: 60 | D71: 11171 | E71: 0316141-61.2023.3.00.0000 | F71: Alimentar | G71: União | H71: 2025-07-01 | I71: 608339.35
C72: 61 | D72: 11172 | E72: 0316147-68.2023.3.00.0000 | F72: Alimentar | G72: União | H72: 2025-07-01 | I72: 229671.69
C73: 62 | D73: 11173 | E73: 0316155-45.2023.3.00.0000 | F73: Alimentar | G73: União | H73: 2025-07-01 | I73: 111551.17
C74: 63 | D74: 11174 | E74: 0316162-37.2023.3.00.0000 | F74: Alimentar | G74: União | H74: 2025-07-01 | I74: 98858.55
C75: 64 | D75: 11175 | E75: 0316164-07.2023.3.00.0000 | F75: Alimentar | G75: União | H75: 2025-07-01 | I75: 360029.66
C76: 65 | D76: 11177 | E76: 0326092-79.2023.3.00.0000 | F76: Alimentar | G76: União | H76: 2025-07-01 | I76: 90382.35
C77: 66 | D77: 11178 | E77: 0326101-41.2023.3.00.0000 | F77: Alimentar | G77: União | H77: 2025-07-01 | I77: 120929.84
C78: =IF(D78="","",C77+1) -> 67 | D78: 11183 | E78: 0326162-96.2023.3.00.0000 | F78: Alimentar | G78: União | H78: 2025-07-01 | I78: 517392.17
C79: 68 | D79: 11184 | E79: 0326164-66.2023.3.00.0000 | F79: Alimentar | G79: União | H79: 2025-07-01 | I79: 201208.06
C80: 69 | D80: 11186 | E80: 0345040-69.2023.3.00.0000 | F80: Alimentar | G80: União | H80: 2025-07-01 | I80: 203579.02
C81: 70 | D81: 11190 | E81: 0349334-67.2023.3.00.0000 | F81: Alimentar | G81: União | H81: 2025-07-01 | I81: 33722.83
C82: 71 | D82: 11191 | E82: 0349465-42.2023.3.00.0000 | F82: Alimentar | G82: União | H82: 2025-07-01 | I82: 16900.32
C83: 72 | D83: 11192 | E83: 0349472-34.2023.3.00.0000 | F83: Alimentar | G83: União | H83: 2025-07-01 | I83: 589828.82
C84: 73 | D84: 11193 | E84: 0349474-04.2023.3.00.0000 | F84: Alimentar | G84: União | H84: 2025-07-01 | I84: 117965.73
C85: 74 | D85: 11194 | E85: 0349475-86.2023.3.00.0000 | F85: Alimentar | G85: União | H85: 2025-07-01 | I85: 117965.73
C86: 75 | D86: 11195 | E86: 0349488-85.2023.3.00.0000 | F86: Alimentar | G86: União | H86: 2025-07-01 | I86: 102516.44
C87: 76 | D87: 11196 | E87: 0349492-25.2023.3.00.0000 | F87: Alimentar | G87: União | H87: 2025-07-01 | I87: 102516.44
C88: 77 | D88: 11197 | E88: 0349494-92.2023.3.00.0000 | F88: Alimentar | G88: União | H88: 2025-07-01 | I88: 102516.44
C89: 78 | D89: 11198 | E89: 0349646-43.2023.3.00.0000 | F89: Alimentar | G89: União | H89: 2025-07-01 | I89: 33722.83
C90: 79 | D90: 11242 | E90: 0353672-84.2023.3.00.0000 | F90: Alimentar | G90: União | H90: 2025-07-01 | I90: 321.17
C91: 80 | D91: 11245 | E91: 0358333-09.2023.3.00.0000 | F91: Alimentar | G91: União | H91: 2025-07-01 | I91: 4796.96
C92: 81 | D92: 11248 | E92: 0358516-77.2023.3.00.0000 | F92: Alimentar | G92: União | H92: 2025-07-01 | I92: 298102.27
C93: 82 | D93: 11251 | E93: 0360172-69.2023.3.00.0000 | F93: Alimentar | G93: União | H93: 2025-07-01 | I93: 412711.13
C94: 83 | D94: 11252 | E94: 0360180-46.2023.3.00.0000 | F94: Alimentar | G94: União | H94: 2025-07-01 | I94: 148631.15
C95: 84 | D95: 11256 | E95: 0360199-52.2023.3.00.0000 | F95: Alimentar | G95: União | H95: 2025-07-01 | I95: 203422
C96: 85 | D96: 11257 | E96: 0360414-28.2023.3.00.0000 | F96: Alimentar | G96: União | H96: 2025-07-01 | I96: 123282.05
C97: 86 | D97: 11258 | E97: 0360417-80.2023.3.00.0000 | F97: Alimentar | G97: União | H97: 2025-07-01 | I97: 89152.18
C98: 87 | D98: 11259 | E98: 0360420-35.2023.3.00.0000 | F98: Alimentar | G98: União | H98: 2025-07-01 | I98: 175940.17
C99: 88 | D99: 11260 | E99: 0360461-02.2023.3.00.0000 | F99: Alimentar | G99: União | H99: 2025-07-01 | I99: 92975.46
C100: 89 | D100: 11261 | E100: 0360462-84.2023.3.00.0000 | F100: Alimentar | G100: União | H100: 2025-07-01 | I100: 233188.57
C101: 90 | D101: 11262 | E101: 0360467-09.2023.3.00.0000 | F101: Alimentar | G101: União | H101: 2025-07-01 | I101: 110462.7
C102: 91 | D102: 11263 | E102: 0360471-46.2023.3.00.0000 | F102: Alimentar | G102: União | H102: 2025-07-01 | I102: 122786.92
C103: 92 | D103: 11265 | E103: 0360474-98.2023.3.00.0000 | F103: Alimentar | G103: União | H103: 2025-07-01 | I103: 89152.18
C104: 93 | D104: 11266 | E104: 0360475-83.2023.3.00.0000 | F104: Alimentar | G104: União | H104: 2025-07-01 | I104: 92975.46
C105: 94 | D105: 11267 | E105: 0360479-23.2023.3.00.0000 | F105: Alimentar | G105: União | H105: 2025-07-01 | I105: 89152.18
C106: 95 | D106: 11268 | E106: 0360489-67.2023.3.00.0000 | F106: Alimentar | G106: União | H106: 2025-07-01 | I106: 105950.1
C107: 96 | D107: 11269 | E107: 0360492-22.2023.3.00.0000 | F107: Alimentar | G107: União | H107: 2025-07-01 | I107: 101143.3
C108: 97 | D108: 11270 | E108: 0360500-96.2023.3.00.0000 | F108: Alimentar | G108: União | H108: 2025-07-01 | I108: 140352.47
C109: 98 | D109: 11271 | E109: 0360501-81.2023.3.00.0000 | F109: Alimentar | G109: União | H109: 2025-07-01 | I109: 265306.72
C110: 99 | D110: 11272 | E110: 0360503-51.2023.3.00.0000 | F110: Alimentar | G110: União | H110: 2025-07-01 | I110: 155036
C111: 100 | D111: 11273 | E111: 0360506-06.2023.3.00.0000 | F111: Alimentar | G111: União | H111: 2025-07-01 | I111: 177679.86
C112: 101 | D112: 11274 | E112: 0360507-88.2023.3.00.0000 | F112: Alimentar | G112: União | H112: 2025-07-01 | I112: 165827.12
C113: 102 | D113: 11275 | E113: 0360541-63.2023.3.00.0000 | F113: Alimentar | G113: União | H113: 2025-07-01 | I113: 380644.14
C114: 103 | D114: 11276 | E114: 0360546-85.2023.3.00.0000 | F114: Alimentar | G114: União | H114: 2025-07-01 | I114: 197429.02
C115: 104 | D115: 11277 | E115: 0360547-70.2023.3.00.0000 | F115: Alimentar | G115: União | H115: 2025-07-01 | I115: 219951.71
C116: 105 | D116: 11278 | E116: 0360548-55.2023.3.00.0000 | F116: Alimentar | G116: União | H116: 2025-07-01 | I116: 237021.49
C117: 106 | D117: 11279 | E117: 0360549-40.2023.3.00.0000 | F117: Alimentar | G117: União | H117: 2025-07-01 | I117: 123283.34
C118: 107 | D118: 11280 | E118: 0360554-62.2023.3.00.0000 | F118: Alimentar | G118: União | H118: 2025-07-01 | I118: 253660
C119: 108 | D119: 11281 | E119: 0360556-32.2023.3.00.0000 | F119: Alimentar | G119: União | H119: 2025-07-01 | I119: 190586
C120: 109 | D120: 11282 | E120: 0360560-69.2023.3.00.0000 | F120: Alimentar | G120: União | H120: 2025-07-01 | I120: 171596.89
C121: 110 | D121: 11283 | E121: 0360562-39.2023.3.00.0000 | F121: Alimentar | G121: União | H121: 2025-07-01 | I121: 233188.57
C122: 111 | D122: 11284 | E122: 0360563-24.2023.3.00.0000 | F122: Alimentar | G122: União | H122: 2025-07-01 | I122: 149947.68
C123: 112 | D123: 11285 | E123: 0360564-09.2023.3.00.0000 | F123: Alimentar | G123: União | H123: 2025-07-01 | I123: 243201.43
C124: 113 | D124: 11286 | E124: 0360567-61.2023.3.00.0000 | F124: Alimentar | G124: União | H124: 2025-07-01 | I124: 303204.1
C125: 114 | D125: 11287 | E125: 0360568-46.2023.3.00.0000 | F125: Alimentar | G125: União | H125: 2025-07-01 | I125: 243201.43
C126: 115 | D126: 11288 | E126: 0360569-31.2023.3.00.0000 | F126: Alimentar | G126: União | H126: 2025-07-01 | I126: 318445.32
C127: 116 | D127: 11289 | E127: 0360570-16.2023.3.00.0000 | F127: Alimentar | G127: União | H127: 2025-07-01 | I127: 237021.49
C128: 117 | D128: 11290 | E128: 0360573-68.2023.3.00.0000 | F128: Alimentar | G128: União | H128: 2025-07-01 | I128: 96227.08
C129: 118 | D129: 11291 | E129: 0384618-39.2023.3.00.0000 | F129: Alimentar | G129: União | H129: 2025-07-01 | I129: 116390.91
C130: 119 | D130: 11292 | E130: 0384653-96.2023.3.00.0000 | F130: Alimentar | G130: União | H130: 2025-07-01 | I130: 110602
C131: 120 | D131: 11293 | E131: 0384666-95.2023.3.00.0000 | F131: Alimentar | G131: União | H131: 2025-07-01 | I131: 126481.6
C132: 121 | D132: 11296 | E132: 0384775-12.2023.3.00.0000 | F132: Alimentar | G132: União | H132: 2025-07-01 | I132: 76166.57
C133: 122 | D133: 11297 | E133: 0384776-94.2023.3.00.0000 | F133: Alimentar | G133: União | H133: 2025-07-01 | I133: 94455.78
C134: 123 | D134: 11298 | E134: 0384803-77.2023.3.00.0000 | F134: Alimentar | G134: União | H134: 2025-07-01 | I134: 949057.11
C135: 124 | D135: 11299 | E135: 0384804-62.2023.3.00.0000 | F135: Alimentar | G135: União | H135: 2025-07-01 | I135: 474528.54
C136: 125 | D136: 11300 | E136: 0384805-47.2023.3.00.0000 | F136: Alimentar | G136: União | H136: 2025-07-01 | I136: 474528.54
C137: 126 | D137: 11301 | E137: 0384806-32.2023.3.00.0000 | F137: Alimentar | G137: União | H137: 2025-07-01 | I137: 466721.86
C138: 127 | D138: 11302 | E138: 0384810-69.2023.3.00.0000 | F138: Alimentar | G138: União | H138: 2025-07-01 | I138: 116680.45
C139: 128 | D139: 11303 | E139: 0384811-54.2023.3.00.0000 | F139: Alimentar | G139: União | H139: 2025-07-01 | I139: 23611.96
C140: 129 | D140: 11358 | E140: 0391152-96.2023.3.00.0000 | F140: Alimentar | G140: União | H140: 2025-07-01 | I140: 90879.63
C141: 130 | D141: 11359 | E141: 0391165-95.2023.3.00.0000 | F141: Alimentar | G141: União | H141: 2025-07-01 | I141: 89722.48
C142: =IF(D142="","",C141+1) -> 131 | D142: 11374 | E142: 0394233-53.2023.3.00.0000 | F142: Alimentar | G142: União | H142: 2025-07-01 | I142: 593439.63
C143: 132 | D143: 11375 | E143: 0399228-12.2023.3.00.0000 | F143: Alimentar | G143: União | H143: 2025-07-01 | I143: 288566.1
C144: 133 | D144: 11376 | E144: 0399238-56.2023.3.00.0000 | F144: Alimentar | G144: União | H144: 2025-07-01 | I144: 92007.42
C145: 134 | D145: 11377 | E145: 0399307-88.2023.3.00.0000 | F145: Alimentar | G145: União | H145: 2025-07-01 | I145: 9190.24
C146: 135 | D146: 11378 | E146: 0399314-80.2023.3.00.0000 | F146: Alimentar | G146: União | H146: 2025-07-01 | I146: 9190.24
C147: 136 | D147: 11380 | E147: 0422186-89.2023.3.00.0000 | F147: Alimentar | G147: União | H147: 2025-07-01 | I147: 89151.27
C148: 137 | D148: 11381 | E148: 0422190-29.2023.3.00.0000 | F148: Alimentar | G148: União | H148: 2025-07-01 | I148: 87451.06
C149: 138 | D149: 11382 | E149: 0422191-14.2023.3.00.0000 | F149: Alimentar | G149: União | H149: 2025-07-01 | I149: 101798.04
C150: 139 | D150: 11386 | E150: 0423247-82.2023.3.00.0000 | F150: Alimentar | G150: União | H150: 2025-07-01 | I150: 366444.9
C151: 140 | D151: 11387 | E151: 0423392-41.2023.3.00.0000 | F151: Alimentar | G151: União | H151: 2025-07-01 | I151: 116888.62
C152: 141 | D152: 11388 | E152: 0423400-18.2023.3.00.0000 | F152: Alimentar | G152: União | H152: 2025-07-01 | I152: 645026.1
C153: 142 | D153: 11389 | E153: 0423422-76.2023.3.00.0000 | F153: Alimentar | G153: União | H153: 2025-07-01 | I153: 161256.51
C154: 143 | D154: 11390 | E154: 0423427-98.2023.3.00.0000 | F154: Alimentar | G154: União | H154: 2025-07-01 | I154: 161256.51
C155: 144 | D155: 11391 | E155: 0423434-90.2023.3.00.0000 | F155: Alimentar | G155: União | H155: 2025-07-01 | I155: 161256.51
C156: 145 | D156: 11392 | E156: 0423436-60.2023.3.00.0000 | F156: Alimentar | G156: União | H156: 2025-07-01 | I156: 161256.51
C157: 146 | D157: 11393 | E157: 0423438-30.2023.3.00.0000 | F157: Alimentar | G157: União | H157: 2025-07-01 | I157: 210770.2
C158: 147 | D158: 11394 | E158: 0423482-49.2023.3.00.0000 | F158: Alimentar | G158: União | H158: 2025-07-01 | I158: 210770.2
C159: 148 | D159: 11395 | E159: 0423490-26.2023.3.00.0000 | F159: Alimentar | G159: União | H159: 2025-07-01 | I159: 210770.2
C160: 149 | D160: 11396 | E160: 0423494-63.2023.3.00.0000 | F160: Alimentar | G160: União | H160: 2025-07-01 | I160: 210770.2
C161: 150 | D161: 11397 | E161: 0423497-18.2023.3.00.0000 | F161: Alimentar | G161: União | H161: 2025-07-01 | I161: 210770.2
C162: 151 | D162: 11398 | E162: 0423499-85.2023.3.00.0000 | F162: Alimentar | G162: União | H162: 2025-07-01 | I162: 247815.45
C163: 152 | D163: 11399 | E163: 0423523-16.2023.3.00.0000 | F163: Alimentar | G163: União | H163: 2025-07-01 | I163: 247815.45
C164: 153 | D164: 11400 | E164: 0423524-98.2023.3.00.0000 | F164: Alimentar | G164: União | H164: 2025-07-01 | I164: 247815.45
C165: 154 | D165: 11401 | E165: 0423525-83.2023.3.00.0000 | F165: Alimentar | G165: União | H165: 2025-07-01 | I165: 106206.62
C166: 155 | D166: 11402 | E166: 0424598-90.2023.3.00.0000 | F166: Alimentar | G166: União | H166: 2025-07-01 | I166: 798735.49
C167: 156 | D167: 11403 | E167: 0424600-60.2023.3.00.0000 | F167: Alimentar | G167: União | H167: 2025-07-01 | I167: 373914.61
C168: 157 | D168: 11404 | E168: 0424622-21.2023.3.00.0000 | F168: Alimentar | G168: União | H168: 2025-07-01 | I168: 373914.61
C169: 158 | D169: 11405 | E169: 0424624-88.2023.3.00.0000 | F169: Alimentar | G169: União | H169: 2025-07-01 | I169: 383044.56
C170: 159 | D170: 11406 | E170: 0424627-43.2023.3.00.0000 | F170: Alimentar | G170: União | H170: 2025-07-01 | I170: 127681.5
C171: 160 | D171: 11407 | E171: 0424631-80.2023.3.00.0000 | F171: Alimentar | G171: União | H171: 2025-07-01 | I171: 127681.5
C172: 161 | D172: 11408 | E172: 0424632-65.2023.3.00.0000 | F172: Alimentar | G172: União | H172: 2025-07-01 | I172: 127681.5
C173: 162 | D173: 11409 | E173: 0424635-20.2023.3.00.0000 | F173: Alimentar | G173: União | H173: 2025-07-01 | I173: 399979.48
C174: 163 | D174: 11410 | E174: 0424637-87.2023.3.00.0000 | F174: Alimentar | G174: União | H174: 2025-07-01 | I174: 133326.48
C175: 164 | D175: 11411 | E175: 0424640-42.2023.3.00.0000 | F175: Alimentar | G175: União | H175: 2025-07-01 | I175: 133326.48
C176: 165 | D176: 11412 | E176: 0424681-09.2023.3.00.0000 | F176: Alimentar | G176: União | H176: 2025-07-01 | I176: 133326.48
C177: 166 | D177: 11413 | E177: 0425081-23.2023.3.00.0000 | F177: Alimentar | G177: União | H177: 2025-07-01 | I177: 1738.07
C178: 167 | D178: 11414 | E178: 0425422-49.2023.3.00.0000 | F178: Alimentar | G178: União | H178: 2025-07-01 | I178: 2413.82
C179: 168 | D179: 11415 | E179: 0427777-32.2023.3.00.0000 | F179: Alimentar | G179: União | H179: 2025-07-01 | I179: 2786.76
C180: 169 | D180: 11416 | E180: 0428667-68.2023.3.00.0000 | F180: Alimentar | G180: União | H180: 2025-07-01 | I180: 1316.91
C181: 170 | D181: 11417 | E181: 0429637-68.2023.3.00.0000 | F181: Alimentar | G181: União | H181: 2025-07-01 | I181: 48832.7
C182: 171 | D182: 11418 | E182: 0429638-53.2023.3.00.0000 | F182: Alimentar | G182: União | H182: 2025-07-01 | I182: 70047.21
C183: 172 | D183: 11419 | E183: 0429640-23.2023.3.00.0000 | F183: Alimentar | G183: União | H183: 2025-07-01 | I183: 67047.52
C184: 173 | D184: 11420 | E184: 0429644-60.2023.3.00.0000 | F184: Alimentar | G184: União | H184: 2025-07-01 | I184: 67437.7
C185: 174 | D185: 11421 | E185: 0429646-30.2023.3.00.0000 | F185: Alimentar | G185: União | H185: 2025-07-01 | I185: 58682.98
C186: 175 | D186: 11422 | E186: 0429649-82.2023.3.00.0000 | F186: Alimentar | G186: União | H186: 2025-07-01 | I186: 8060.29
C187: 176 | D187: 11423 | E187: 0430064-65.2023.3.00.0000 | F187: Alimentar | G187: União | H187: 2025-07-01 | I187: 53057.23
C188: 177 | D188: 11424 | E188: 0430065-50.2023.3.00.0000 | F188: Alimentar | G188: União | H188: 2025-07-01 | I188: 51370.21
C189: 178 | D189: 11425 | E189: 0430069-87.2023.3.00.0000 | F189: Alimentar | G189: União | H189: 2025-07-01 | I189: 66119.35
C190: 179 | D190: 11426 | E190: 0430071-57.2023.3.00.0000 | F190: Alimentar | G190: União | H190: 2025-07-01 | I190: 48227.84
C191: 180 | D191: 11427 | E191: 0430075-94.2023.3.00.0000 | F191: Alimentar | G191: União | H191: 2025-07-01 | I191: 77252.13
C192: 181 | D192: 11428 | E192: 0430078-49.2023.3.00.0000 | F192: Alimentar | G192: União | H192: 2025-07-01 | I192: 46690.93
C193: 182 | D193: 11429 | E193: 0430342-66.2023.3.00.0000 | F193: Alimentar | G193: União | H193: 2025-07-01 | I193: 60841.63
C194: 183 | D194: 11430 | E194: 0430351-28.2023.3.00.0000 | F194: Alimentar | G194: União | H194: 2025-07-01 | I194: 65225.16
C195: 184 | D195: 11431 | E195: 0430385-03.2023.3.00.0000 | F195: Alimentar | G195: União | H195: 2025-07-01 | I195: 56802.68
C196: 185 | D196: 11432 | E196: 0430387-70.2023.3.00.0000 | F196: Alimentar | G196: União | H196: 2025-07-01 | I196: 59962.72
C197: 186 | D197: 11433 | E197: 0430391-10.2023.3.00.0000 | F197: Alimentar | G197: União | H197: 2025-07-01 | I197: 50921.83
C198: 187 | D198: 11434 | E198: 0430393-77.2023.3.00.0000 | F198: Alimentar | G198: União | H198: 2025-07-01 | I198: 14373.59
C199: 188 | D199: 11446 | E199: 0431073-62.2023.3.00.0000 | F199: Alimentar | G199: União | H199: 2025-07-01 | I199: 89490.2
C200: 189 | D200: 11467 | E200: 0434053-79.2023.3.00.0000 | F200: Alimentar | G200: União | H200: 2025-07-01 | I200: 115004.01
C201: 190 | D201: 11468 | E201: 0434605-44.2023.3.00.0000 | F201: Alimentar | G201: União | H201: 2025-07-01 | I201: 91056.41
C202: 191 | D202: 11471 | E202: 0436200-78.2023.3.00.0000 | F202: Alimentar | G202: União | H202: 2025-07-01 | I202: 103952.84
... 647 more rows
